[Event "ETCC Open 2023"]
[Site "Budva"]
[Date "2023.11.13"]
[Round "3.45"]
[White "Theodorou, Nikolas"]
[Black "Laurusas, Tomas"]
[Result "1/2-1/2"]
[ECO "C43"]
[WhiteElo "2619"]
[BlackElo "2566"]
[Annotator "TA"]
[PlyCount "87"]
[EventDate "2023.11.10"]
[EventType "team-tourn"]
[EventCountry "MNE"]
[SourceTitle "playchess.com"]
[Source "ChessBase"]
[SourceQuality "1"]
[WhiteTeam "Greece"]
[BlackTeam "Lithuania"]
[WhiteTeamCountry "GRE"]
[BlackTeamCountry "LTU"]
[TimeControl "40/5400+30:1800+30"]

{[%evp 12,87,0,0,0,0,0,0,0,0,0,0,4,3,25,0,13,4,29,19,57,0,0,0,56,67,56,56,68,68,103,84,92,89,102,64,79,86,91,49,95,0,99,89,215,34,120,0,184,0,103,77,102,0,58,0,0,0,0,0,0,0,0,0,0,0,0,0,0,0,0,0,36,36,39,37,37,37]} 1. e4 {[%emt 0:00:10]} e5 {[%emt 0:00:56]} 2. Nf3 {[%emt 0:00:07]} Nf6 {[%emt 0:00:06]} 3. d4 {[%emt 0:00:16]} Nxe4 {[%emt 0:00:13]} 4. Bd3 {[%emt 0:00:20]} d5 {[%emt 0:00:09]} 5. Nxe5 {[%emt 0:00:12]} Nd7 {[%emt 0:00:22]} 6. O-O {[%emt 0:00:15]} Nxe5 {[%emt 0:02:55]} 7. dxe5 {[%emt 0:00:05]} Nc5 {[%emt 0:01:02] C43: Petroff Defence: 3 d4.} 8. Be3 {[%emt 0:01:13]} Be7 {[%emt 0:05:47]} 9. f4 {[%emt 0:07:12]} Nxd3 {[%emt 0:01:17] The position is equal.} 10. Qxd3 {[%emt 0:00:09]} g6 {[%emt 0:03:44]} (10... O-O {is interesting.} 11. f5 Re8 12. f6 gxf6 13. Nc3 fxe5 14. Nxd5 Be6) 11. Nc3 {[%emt 0:00:31][%cal Bb1c3,Bc3e2,Be2g3][%mdl 32]} c6 {[%emt 0:00:17]} 12. Ne2 {[%emt 0:00:06]} Bf5 {[%emt 0:01:07] Black is weak on the dark squares} 13. Qd2 {[%emt 0:05:33]} Qd7 {[%emt 0:04:06]} 14. Ng3 {[%emt 0:01:46] [#]} h5 $146 {[%emt 0:06:25]} ({Predecessor:} 14... O-O 15. Nxf5 Qxf5 16. Rae1 f6 17. Bd4 fxe5 18. Rxe5 Qd7 19. Re2 b6 20. g3 Rae8 21. Rfe1 c5 {½-½ Sidenko,A (2310)-Haeusler,W (2411) ST-2012-0-00104}) 15. Qc3 {[%emt 0:01:31][%cal Oe5e6]} Rg8 {[%emt 0:03:18]} 16. Bc5 {[%emt 0:02:01]} (16. Nxf5 $14 Qxf5 17. Rad1) 16... Bxc5+ $11 {[%emt 0:24:38]} 17. Qxc5 {[%emt 0:00:04]} b6 {[%emt 0:00:08]} (17... Bg4 $11) 18. Qf2 $14 {[%emt 0:02:49]} O-O-O {[%emt 0:00:10]} 19. a4 {[%emt 0:00:11]} Kb7 {[%emt 0:09:27]} 20. a5 {[%emt 0:00:55]} c5 {[%emt 0:02:23]} 21. Ra3 {[%emt 0:12:17]} d4 {[%emt 0:03:11]} 22. axb6 {[%emt 0:01:28]} (22. Nxf5 {simplifies} gxf5 23. axb6 axb6 24. Rh3) 22... axb6 {[%emt 0:00:09]} 23. Rfa1 {[%emt 0:09:08]} Qd5 $1 {[%emt 0:00:28]} 24. Ra7+ {[%emt 0:11:52]} Kc6 {[%emt 0:00:06]} 25. h4 {[%emt 0:00:27]} Rd7 {[%emt 0:08:24]} (25... d3 $1 $14 26. cxd3 (26. Nxf5 gxf5 27. cxd3 Qxd3 $11) 26... Bxd3) 26. Kh2 {[%emt 0:02:32]} ({Better is} 26. R7a3 $1 $16) 26... Rgd8 {[%emt 0:03:41]} (26... Rxa7 $11 27. Rxa7 Rc8) 27. R7a4 {[%emt 0:04:04]} Bg4 {[%emt 0:05:28] [#]} (27... Be6 $16) 28. Qe1 $2 {[%emt 0:10:25]} ({White has to play} 28. b4 $1 $18 {[%cal Rb4c5]}) 28... Bf5 {[%emt 0:05:40]} ({Black should play} 28... d3 $14 29. cxd3 Qxd3) 29. Qf2 {[%emt 0:08:49]} (29. Nxf5 $16 gxf5 30. Qg3) 29... Bg4 $18 {[%emt 0:00:05] [#]} 30. Qe1 {[%emt 0:10:47]} (30. b4 $1 $18 {[%cal Rb4c5]}) 30... Bf5 $1 $16 {[%emt 0:00:05]} 31. Qd1 {[%emt 0:00:04]} Be6 {[%emt 0:01:05][%cal Of7f6]} 32. b3 {[%emt 0:01:24]} (32. b4 $16) 32... Rb7 {[%emt 0:00:23]} ({Black should try} 32... g5 $11 33. hxg5 (33. fxg5 Qxe5 34. Qf3+ Bd5 $11) 33... h4) 33. Ra8 {[%emt 0:04:27]} (33. b4 $14) 33... Kc7 {[%emt 0:01:02]} 34. Qe1 {[%emt 0:00:45]} Rxa8 {[%emt 0:02:24]} 35. Rxa8 {[%emt 0:00:02]} Rb8 {[%emt 0:01:19] Inhibits Ne4.} 36. Ra7+ {[%emt 0:00:02]} Rb7 {[%emt 0:00:07][%cal Bb8b7,Bb7a7,Ba7a8,Ba8e8][%mdl 32]} 37. Ra1 {[%emt 0:00:36]} Bd7 {[%emt 0:00:52]} 38. Qf2 {[%emt 0:00:48]} Bc6 {[%emt 0:00:12]} 39. Re1 {[%emt 0:00:50]} Ra7 {[%emt 0:01:02]} 40. f5 $1 {[%emt 0:02:07]} Ra8 {[%emt 0:04:49]} 41. Re2 {[%emt 0:05:10] fxg6 would be deadly.} Re8 {[%emt 0:09:07]} (41... Bb5 $5 {[%cal Rb5e2]} 42. Re1 Bc6 $14) 42. Qf4 {[%emt 0:01:22] Threatens to win with e6+. White is slightly better.} Kb7 {[%emt 0:00:06]} 43. Ne4 {[%emt 0:16:49]} Qxe5 {[%emt 0:02:06]} 44. Qxe5 {[%emt 0:00:38][%mdl 64] Remove Defender.   Weighted Error Value: White=0.31/Black=0.20 (precise)} 1/2-1/2

[Event "ETCC Open 2023"]
[Site "Budva"]
[Date "2023.11.13"]
[Round "3.46"]
[White "Kazakouski, Valery"]
[Black "Mastrovasilis, Dimitrios"]
[Result "1/2-1/2"]
[ECO "C24"]
[WhiteElo "2577"]
[BlackElo "2573"]
[Annotator "TA"]
[PlyCount "152"]
[EventDate "2023.11.10"]
[EventType "team-tourn"]
[EventCountry "MNE"]
[SourceTitle "playchess.com"]
[Source "ChessBase"]
[SourceQuality "1"]
[WhiteTeam "Lithuania"]
[BlackTeam "Greece"]
[WhiteTeamCountry "LTU"]
[BlackTeamCountry "GRE"]
[TimeControl "40/5400+30:1800+30"]

{[%evp 11,152,35,34,14,16,23,39,24,27,29,12,22,31,0,0,-23,0,-17,0,0,26,-35,-50,-42,-22,-29,0,0,19,-46,-23,-42,-36,-45,-41,-53,-47,-39,0,-14,-14,-27,-15,-30,0,-4,0,-21,-12,-26,-12,-18,-22,-58,-54,-70,-29,-39,-8,-33,-20,-71,-61,-58,-40,-25,-11,-39,-32,-43,0,-29,-43,-42,-45,-45,-22,-21,-30,-56,-19,-30,-12,-39,0,-91,-83,-118,-114,-100,-71,-171,-169,-182,-179,-189,-185,-203,-66,-104,0,-172,0,-83,0,-166,-181,-168,-127,-127,-127,-127,-127,-127,-127,-127,-77,-77,-77,-77,-77,-77,-77,-77,-77,-211,-204,-175,-127,-258,-241,-395,0,-243,-237,-237,-127,-127,0,-231,0,-127,0]} 1. e4 {[%emt 0:00:09]} e5 {[%emt 0:00:17]} 2. Nf3 {[%emt 0:00:18]} Nc6 {[%emt 0:00:12]} 3. Bc4 {[%emt 0:00:52]} Nf6 {[%emt 0:00:26]} 4. d3 {[%emt 0:00:46]} d5 {[%emt 0:01:00]} 5. exd5 {[%emt 0:01:18]} Nxd5 {[%emt 0:00:12]} 6. O-O {[%emt 0:00:29]} Nb6 {[%emt 0:00:40]} 7. Bb3 {[%emt 0:08:33] Strongly threatening Ng5. C24: Bishop's Opening: 2...Nf6.} (7. Bb5 $5 {[%cal Rf3e5]}) 7... Bg4 {[%emt 0:02:01]} 8. h3 {[%emt 0:01:48]} Bh5 {[%emt 0:02:18]} 9. Re1 {[%emt 0:04:41][%cal Of3e5] White is slightly better.} Qe7 {[%emt 0:01:55]} 10. a4 {[%emt 0:15:02]} a5 $1 {[%emt 0:00:19]} 11. Be3 {[%emt 0:19:48]} O-O-O {[%emt 0:20:49] [#]} 12. Bxb6 $146 {[%emt 0:01:38]} ({Predecessor:} 12. Nc3 Kb8 13. Qe2 f6 14. Rad1 g5 15. Bxb6 cxb6 16. Nb5 Qg7 17. g4 Bg6 18. d4 {1-0 Ceres,D (2409)-Delgerdalai,B (2189) Lienz op 21st 2023 (4)}) 12... cxb6 {[%emt 0:00:25]} 13. Nbd2 {[%emt 0:00:37]} Qc7 {[%emt 0:08:11]} 14. Bc4 {[%emt 0:02:43]} f6 {[%emt 0:05:42]} 15. c3 {[%emt 0:01:40]} Kb8 {[%emt 0:01:51]} 16. Qb3 {[%emt 0:03:14]} (16. Ne4 $11) 16... Bc5 $15 {[%emt 0:04:42]} 17. Rac1 {[%emt 0:03:47]} Rhe8 {[%emt 0:03:21][%cal Oe5e4]} 18. Bb5 {[%emt 0:03:56]} Bf7 {[%emt 0:09:57]} 19. Qc2 {[%emt 0:01:47]} Bf8 {[%emt 0:03:44] [#]} 20. d4 {[%emt 0:05:37]} Bg6 {[%emt 0:08:08]} 21. Bd3 {[%emt 0:00:49]} Bxd3 {[%emt 0:03:02]} 22. Qxd3 {[%emt 0:00:03]} exd4 {[%emt 0:00:09]} 23. Rxe8 {[%emt 0:00:34]} Rxe8 {[%emt 0:00:06]} 24. cxd4 {[%emt 0:00:25] [#]} Ne5 $1 {[%emt 0:01:45][%mdl 64] Discovered Attack} 25. Qf1 {[%emt 0:01:24]} (25. dxe5 $2 Qxc1+ 26. Nf1 fxe5 $19) (25. Qb1 Nxf3+) 25... Nxf3+ {[%emt 0:00:18]} 26. Nxf3 {[%emt 0:00:04]} Qd7 {[%emt 0:03:32]} 27. b3 {[%emt 0:02:37]} Qd5 {[%emt 0:02:49]} 28. Qd3 {[%emt 0:05:12]} g6 {[%emt 0:03:36]} 29. Kf1 {[%emt 0:05:21]} Bb4 {[%emt 0:01:31]} 30. Qc4 {[%emt 0:03:04]} Qf5 {[%emt 0:04:09]} 31. Qf7 {[%emt 0:03:16] Some like it hot} Re7 {[%emt 0:02:01]} 32. Qg8+ {[%emt 0:00:24]} Ka7 {[%emt 0:00:02]} 33. Qc4 $1 {[%emt 0:01:10]} Bd6 {[%emt 0:02:08] Hoping for ...Rc7.} 34. Qb5 {[%emt 0:02:20]} Qf4 {[%emt 0:01:32]} (34... Qxb5+ {simplifies} 35. axb5 Ba3 36. Rd1 Rd7) 35. Rc2 {[%emt 0:01:30]} Qe4 {[%emt 0:03:13]} 36. Qe2 {[%emt 0:00:18]} (36. Rc1 $1 $11) 36... Qf5 {[%emt 0:00:42]} 37. Qd1 {[%emt 0:00:11]} Qd5 {[%emt 0:00:44]} 38. Qd3 {[%emt 0:00:37]} g5 {[%emt 0:00:38]} 39. Re2 {[%emt 0:01:11]} Rc7 {[%emt 0:00:19]} 40. Rc2 {[%emt 0:00:40]} Re7 {[%emt 0:01:28]} (40... Rxc2 {simplifies} 41. Qxc2 b5 42. axb5 Qxb5+ 43. Kg1 h5) 41. Ng1 {[%emt 0:07:23]} Bb4 {[%emt 0:09:37][%csl Gb4][%cal Re7e1]} ({Much weaker is} 41... Qe6 42. Re2 Qg8 43. Rxe7 Bxe7 44. Ne2 $14) 42. Ne2 {[%emt 0:00:57]} h5 {[%emt 0:00:47]} 43. Rc1 {[%emt 0:01:40]} Rd7 {[%emt 0:03:52]} 44. Qc4 {[%emt 0:03:05]} h4 {[%emt 0:04:30]} 45. Kg1 {[%emt 0:05:04]} Rd6 {[%emt 0:02:18]} (45... b5 {simplifies} 46. Qxd5 Rxd5 47. axb5 Rxb5 48. g3 hxg3 49. fxg3 Bd2) 46. Rd1 {[%emt 0:00:54]} Kb8 {[%emt 0:01:35]} 47. f3 {[%emt 0:02:00]} Rd8 {[%emt 0:03:05][%cal Bd6d8,Bd8e8,Be8e3][%mdl 32]} 48. Kf2 {[%emt 0:05:47]} (48. Qxd5 $11 {keeps the balance.} Rxd5 49. Kf2) 48... Qd6 $17 {[%emt 0:00:30]} 49. Rc1 {[%emt 0:00:46]} Qe7 {[%emt 0:01:25] White is weak on the dark squares} 50. Qd3 {[%emt 0:01:08]} Re8 {[%emt 0:01:05][%cal Of6f5]} 51. Rc2 {[%emt 0:00:32]} (51. f4 $17) 51... Qe6 $19 {[%emt 0:00:38]} 52. Kf1 {[%emt 0:01:04]} ({Don't play} 52. Kg1 f5 53. Kf2 g4) 52... Qe3 {[%emt 0:01:11] Inhibits f4.} 53. Qxe3 {[%emt 0:03:19]} Rxe3 {[%emt 0:00:03][%mdl 4096] Endgame KRB-KRN} 54. Nc1 {[%emt 0:00:11]} Ba3 {[%emt 0:01:29]} (54... f5 $19 {aiming for ...Ka7.} 55. Kf2 f4) 55. Na2 {[%emt 0:00:13]} Bb4 {[%emt 0:02:59] Inhibits Rc3.} (55... Rxb3 $17 56. Nc3 Bd6) 56. Nc1 $1 {[%emt 0:04:34]} Ba3 {[%emt 0:01:56]} (56... f5 $19 57. Kf2 f4) 57. Na2 $1 $17 {[%emt 0:00:00]} Bb4 {[%emt 0:00:31]} (57... Rxb3 $17 {Threatens to win with ...Bb2.} 58. Nc3 Bb4) 58. Rb2 $2 {[%emt 0:00:00]} (58. Nc1 $1 $11 {and White has nothing to worry.}) 58... Bd6 $19 {[%emt 0:00:50]} 59. Kf2 {[%emt 0:00:38]} Rd3 {[%emt 0:00:58]} 60. Ke2 {[%emt 0:00:34]} Rxd4 {[%emt 0:00:03]} 61. Rd2 {[%emt 0:00:20]} Rxd2+ {[%emt 0:00:18]} 62. Kxd2 $17 {[%emt 0:00:01] KB-KN} Kc7 {[%emt 0:00:13]} 63. Kd3 {[%emt 0:00:10]} Kc6 {[%emt 0:00:36]} (63... Bf4 $142 64. Nc3 Kd6) 64. Kc4 {[%emt 0:00:29]} Be5 {[%emt 0:01:04]} 65. Nc1 {[%emt 0:00:06]} Kd6 {[%emt 0:00:24]} 66. Nd3 {[%emt 0:00:15]} Bh2 {[%emt 0:00:36]} 67. Nf2 {[%emt 0:01:46]} Bg1 {[%emt 0:00:21]} 68. Ne4+ {[%emt 0:00:02]} (68. Nd3 $17 {was the only chance.}) 68... Ke5 $19 {[%emt 0:00:20]} 69. Kd3 {[%emt 0:00:02]} Bc5 {[%emt 0:00:32]} ({Black should play} 69... Bd4 $19 70. Kc4 (70. Nxf6 Kxf6 71. Kxd4 Kf5 $11) 70... Bb2) 70. Nd2 {[%emt 0:01:39]} (70. Nc3 $17 {was the only defense.}) 70... Kf4 {[%emt 0:00:55]} 71. Ke2 $2 {[%emt 0:00:08]} (71. Nf1) 71... Ke5 {[%emt 0:00:20]} 72. Kd3 {[%emt 0:00:12]} Kd5 {[%emt 0:00:54]} 73. Nc4 {[%emt 0:00:30] [#]} Bg1 {[%emt 0:00:32]} (73... Kc6 $1 $19 {...b5 would be deadly.} 74. Nd2 b5) 74. Na3 $17 {[%emt 0:00:13]} Bc5 {[%emt 0:00:30]} (74... Ke5 $17 75. Nc2 Bc5) 75. Nc4 $19 {[%emt 0:00:16] [#]} Bg1 {[%emt 0:00:31]} (75... Kc6 $1 $19 {...b5 is the strong threat.} 76. Nd2 b5) 76. Na3 $1 $17 {[%emt 0:00:08]} Bc5 {[%emt 0:00:33] Weighted Error Value: White=0.19 (very precise) /Black=0.18 (very precise)} ({Better is} 76... Ke5 $17 77. Nb5 Kd5) 1/2-1/2

[Event "ETCC Open 2023"]
[Site "Budva"]
[Date "2023.11.13"]
[Round "3.47"]
[White "Papaioannou, Ioannis"]
[Black "Pultinevicius, Paulius"]
[Result "1-0"]
[ECO "B13"]
[WhiteElo "2623"]
[BlackElo "2589"]
[Annotator "TA"]
[PlyCount "89"]
[EventDate "2023.11.10"]
[EventType "team-tourn"]
[EventCountry "MNE"]
[SourceTitle "playchess.com"]
[Source "ChessBase"]
[SourceQuality "1"]
[WhiteTeam "Greece"]
[BlackTeam "Lithuania"]
[WhiteTeamCountry "GRE"]
[BlackTeamCountry "LTU"]
[TimeControl "40/5400+30:1800+30"]

{[%evp 11,89,25,18,25,39,0,0,-6,19,17,27,27,23,15,22,17,15,18,27,20,34,20,58,29,52,55,77,78,50,31,20,22,102,106,104,101,226,227,220,191,179,109,129,120,125,120,139,70,66,23,110,53,47,10,89,51,61,70,72,14,25,10,413,406,399,402,375,0,650,640,1427,1655,1623,1617,1410,1414,1188,1232,981,944]} 1. e4 {[%emt 0:00:06]} c6 {[%emt 0:00:11]} 2. d4 {[%emt 0:00:14]} d5 {[%emt 0:00:04]} 3. exd5 {[%emt 0:00:15]} cxd5 {[%emt 0:00:05]} 4. Bd3 {[%emt 0:00:19]} Nc6 {[%emt 0:00:50]} 5. c3 {[%emt 0:00:10]} Qc7 {[%emt 0:00:04]} 6. h3 {[%emt 0:00:57]} g6 {[%emt 0:00:25] is the new trend.} 7. Ne2 {[%emt 0:01:00] B13: Caro-Kann: Exchange Variation and Panov-Botvinnik Attack.} Bf5 {[%emt 0:00:13] [#]} 8. Nf4 $146 {[%emt 0:06:11]} ({Predecessor:} 8. Bxf5 gxf5 9. Bf4 Qb6 10. Qb3 e6 11. Nd2 Nge7 12. O-O Qxb3 13. axb3 a6 14. b4 Rc8 {1-0 Jumabayev,R (2658)-Socko,B (2646) Dubai bin Rashid Cup Rapid 2021 (7)}) 8... Nf6 {[%emt 0:05:37]} 9. O-O {[%emt 0:02:45] The position is equal.} Bxd3 {[%emt 0:03:23]} 10. Nxd3 {[%emt 0:00:15]} Bg7 {[%emt 0:00:03]} 11. Bf4 {[%emt 0:00:33]} Qc8 {[%emt 0:00:12]} 12. Nd2 {[%emt 0:01:07]} O-O {[%emt 0:01:12]} 13. Re1 {[%emt 0:00:58]} Re8 {[%emt 0:01:49]} 14. Qf3 {[%emt 0:00:29]} b6 {[%emt 0:06:51]} 15. Re2 {[%emt 0:03:57]} Qa6 {[%emt 0:02:33]} 16. a3 {[%emt 0:05:58]} Nh5 {[%emt 0:05:58]} 17. Be5 {[%emt 0:06:01]} (17. Qxd5 $2 Qxd3 18. Re4 Nxf4 19. Rxf4 Qxd2 $19) (17. Rae1 $5) 17... Rad8 {[%emt 0:14:21]} 18. Rae1 {[%emt 0:03:45]} Qb5 {[%emt 0:01:55]} 19. g4 {[%emt 0:07:04]} Nf6 {[%emt 0:02:29]} 20. Bc7 {[%emt 0:02:12]} Rc8 {[%emt 0:01:51]} 21. Bf4 {[%emt 0:03:36]} h5 {[%emt 0:09:09]} (21... e6 $11) 22. Re3 $16 {[%emt 0:05:58]} Rcd8 {[%emt 0:06:20]} 23. Kg2 {[%emt 0:03:33]} Qa4 {[%emt 0:07:11]} (23... Bf8 $16) 24. Bg5 $1 $18 {[%emt 0:02:40]} Qc2 {[%emt 0:18:07]} 25. R3e2 {[%emt 0:01:52]} Nh7 {[%emt 0:01:25]} 26. Bh4 {[%emt 0:02:12]} ({White should try} 26. Qe3 $18) 26... hxg4 $16 {[%emt 0:00:57]} 27. hxg4 {[%emt 0:00:08]} g5 {[%emt 0:03:43]} 28. Bg3 {[%emt 0:00:38] Nc4 is the strong threat.} Qa4 {[%emt 0:00:51][%cal Og7d4] Dodges Nc4} 29. Rh1 {[%emt 0:00:58]} ({White should play} 29. Be5 $16) 29... Nf8 $1 $14 {[%emt 0:02:10]} 30. Qe3 {[%emt 0:21:00] White is more active.} Qa6 {[%emt 0:00:29]} (30... e5 $11 {keeps the balance.}) 31. Nf3 {[%emt 0:08:29]} (31. Ree1 $16) 31... f6 $1 {[%emt 0:00:31]} 32. Ree1 {[%emt 0:01:02]} e6 {[%emt 0:02:44]} (32... Qc8 $11) 33. Nb4 {[%emt 0:01:11]} Qb7 {[%emt 0:00:31]} 34. Nxc6 {[%emt 0:01:36]} Qxc6 {[%emt 0:00:03] [#]} 35. Nxg5 {[%emt 0:02:31]} fxg5 $11 {[%emt 0:00:12]} 36. Be5 {[%emt 0:00:13] Threatens to win with Bxg7.} Ng6 $2 {[%emt 0:02:30][%mdl 8192]} (36... Qb7 $11 {and Black is okay.}) 37. Qxg5 $18 {[%emt 0:00:54]} Nxe5 {[%emt 0:00:09]} 38. Rxe5 {[%emt 0:00:05]} Rf8 {[%emt 0:01:46] [#]} 39. Rh6 $2 $40 {[%emt 0:02:35][%mdl 128] White is up to no good.} ({Not} 39. Qg6 Rf6 40. Qh5 Qe8 41. Qh7+ Kf8 $17) (39. Qh5 $1 $18 {Black must now prevent Rg5.} Rf7 40. Rg5 (40. Qg6 Rf6 $17)) 39... Rde8 $2 {[%emt 0:00:10][%mdl 8192]} (39... Qd7 $11 40. Rg6 (40. Rhxe6 Qf7 $11) (40. Qg6 Rf6 $15) 40... Rf7) 40. Qg6 {[%emt 0:01:13] White threatens Reh5 and mate. White is clearly winning.} Rf6 {[%emt 0:00:55]} 41. Qh7+ {[%emt 0:30:13]} Kf8 {[%emt 0:30:09] [#]} 42. Rg5 $1 {[%emt 0:00:29][%csl Gg5][%cal Rh7g7]} Rf7 {[%emt 0:00:51] [#]} 43. Rxg7 $1 {[%emt 0:00:09][%mdl 576] Remove Defender, Deflection} Rxg7 {[%emt 0:00:13]} 44. Rf6+ {[%emt 0:00:05][%mdl 64] Deflection} Ke7 {[%emt 0:00:03]} 45. Qxg7+ {[%emt 0:00:04] An entertaining game by Papaioannou.   Weighted Error Value: White=0.31/Black=0.51} 1-0

[Event "ETCC Open 2023"]
[Site "Budva"]
[Date "2023.11.13"]
[Round "3.48"]
[White "Klabis, Rokas"]
[Black "Ioannidis, Evgenios"]
[Result "1/2-1/2"]
[ECO "C47"]
[WhiteElo "2412"]
[BlackElo "2502"]
[Annotator "RC"]
[PlyCount "87"]
[EventDate "2023.11.10"]
[EventType "team-tourn"]
[EventCountry "MNE"]
[SourceTitle "playchess.com"]
[Source "ChessBase"]
[SourceQuality "1"]
[WhiteTeam "Lithuania"]
[BlackTeam "Greece"]
[WhiteTeamCountry "LTU"]
[BlackTeamCountry "GRE"]
[TimeControl "40/5400+30:1800+30"]

1. e4 {[%emt 0:00:03]} e5 {[%emt 0:00:14]} 2. Nf3 {[%emt 0:00:30]} Nc6 {[%emt 0:00:10]} 3. Nc3 {[%emt 0:00:32]} Nf6 {[%emt 0:00:37]} 4. d4 {[%emt 0:00:08]} Bb4 {[%emt 0:01:40]} 5. Nxe5 {[%emt 0:10:22]} Qe7 {[%emt 0:01:00]} 6. Nxc6 {[%emt 0:16:32]} Qxe4+ {[%emt 0:00:21]} 7. Qe2 {[%emt 0:00:13]} dxc6 {[%emt 0:00:46]} 8. Bd2 {[%emt 0:01:59]} Qxe2+ {[%emt 0:01:49]} 9. Bxe2 {[%emt 0:01:26]} Bf5 {[%emt 0:00:22]} 10. O-O-O {[%emt 0:03:19]} O-O-O {[%emt 0:00:47]} 11. a3 {[%emt 0:05:15]} Ba5 {[%emt 0:02:25]} 12. b4 {[%emt 0:02:38]} Bb6 {[%emt 0:00:11]} 13. Be3 {[%emt 0:00:03]} Rhe8 {[%emt 0:02:59]} 14. h3 {[%emt 0:04:35]} Nd5 {[%emt 0:07:33]} 15. Nxd5 {[%emt 0:00:57]} cxd5 {[%emt 0:00:09]} 16. Rhe1 {[%emt 0:03:39]} Be4 {[%emt 0:02:41]} 17. Bf1 {[%emt 0:03:12]} Re6 {[%emt 0:03:37]} 18. c3 {[%emt 0:03:19]} c6 {[%emt 0:02:14]} 19. Bf4 {[%emt 0:00:18]} Rde8 {[%emt 0:02:27]} 20. f3 {[%emt 0:04:36]} Bf5 {[%emt 0:02:19]} 21. Kd2 {[%emt 0:00:06]} Bc7 {[%emt 0:04:12]} 22. Bxc7 {[%emt 0:00:20]} Kxc7 {[%emt 0:00:04]} 23. Rxe6 {[%emt 0:00:49]} Bxe6 {[%emt 0:02:06]} 24. Re1 {[%emt 0:01:28]} g5 {[%emt 0:04:17]} 25. Bd3 {[%emt 0:00:47]} h5 {[%emt 0:01:26]} 26. Bf5 {[%emt 0:15:14]} Kd6 {[%emt 0:03:53]} 27. Bxe6 {[%emt 0:02:18]} Rxe6 {[%emt 0:01:48]} 28. g4 {[%emt 0:05:47]} hxg4 {[%emt 0:08:58]} 29. hxg4 {[%emt 0:00:08]} Rh6 {[%emt 0:00:38]} 30. a4 {[%emt 0:04:15]} Rh3 {[%emt 0:02:56]} 31. Re3 {[%emt 0:02:19]} f6 {[%emt 0:05:30]} 32. a5 {[%emt 0:00:18]} Rh2+ {[%emt 0:05:30]} 33. Re2 {[%emt 0:01:05]} Rxe2+ {[%emt 0:02:52]} 34. Kxe2 {[%emt 0:00:04]} Kc7 {[%emt 0:00:19]} 35. Kd3 {[%emt 0:01:02]} b6 {[%emt 0:00:07]} 36. a6 {[%emt 0:01:13]} b5 {[%emt 0:01:01]} 37. Kc2 {[%emt 0:00:04]} Kb6 {[%emt 0:00:04]} 38. Kb2 {[%emt 0:00:06]} Kxa6 {[%emt 0:00:04]} 39. Kc2 {[%emt 0:00:06]} Kb6 {[%emt 0:01:11]} 40. Kb2 {[%emt 0:00:04]} a5 {[%emt 0:03:52]} 41. Kc2 {[%emt 0:30:22]} a4 {[%emt 0:31:32]} 42. Kb2 {[%emt 0:00:04]} Kc7 {[%emt 0:00:05]} 43. Kc2 {[%emt 0:00:05]} Kb6 {[%emt 0:00:22]} 44. Kb2 {[%emt 0:00:05]} 1/2-1/2

[Event "ETCC Open 2023"]
[Site "Budva"]
[Date "2023.11.13"]
[Round "3.49"]
[White "Schitco, Ivan"]
[Black "Vocaturo, Daniele"]
[Result "1/2-1/2"]
[ECO "A45"]
[WhiteElo "2503"]
[BlackElo "2632"]
[Annotator "TA"]
[PlyCount "57"]
[EventDate "2023.11.10"]
[EventType "team-tourn"]
[EventCountry "MNE"]
[SourceTitle "playchess.com"]
[Source "ChessBase"]
[SourceQuality "1"]
[WhiteTeam "Moldova"]
[BlackTeam "Italy"]
[WhiteTeamCountry "MDA"]
[BlackTeamCountry "ITA"]
[TimeControl "40/5400+30:1800+30"]

{[%evp 9,57,0,0,0,8,3,3,3,19,4,20,0,21,15,21,0,0,-15,0,0,0,-17,-22,-19,-17,-10,-18,-22,0,0,0,0,0,-18,-8,-4,-16,-18,0,-6,0,-4,-4,-4,0,-20,0,-4,0,-17]} 1. d4 {[%emt 0:00:07]} Nf6 {[%emt 0:01:12]} 2. Nc3 {[%emt 0:00:09]} e6 {[%emt 0:01:41]} 3. Bf4 {[%emt 0:02:23]} Bb4 {[%emt 0:02:29]} 4. Qd3 {[%emt 0:02:29]} b6 {[%emt 0:07:07]} 5. a3 {[%emt 0:06:53] [#]} Bxc3+ $146 {[%emt 0:05:45] The position is equal.} ({Predecessor:} 5... Ba6 6. Qf3 Bb7 7. Qxb7 Bxc3+ 8. bxc3 Nh5 9. Bxc7 Qf6 10. Qc8+ Ke7 11. Qxh8 Qh6 12. Qd8# {1-0 Saraci,N-Gbadamassi,N Olympiad Women-43 2018 (8.4)}) 6. Qxc3 {[%emt 0:01:09] A45: Trompowsky Attack.} Nd5 {[%emt 0:00:07]} 7. Qg3 {[%emt 0:02:59]} Nxf4 {[%emt 0:06:14]} 8. Qxf4 {[%emt 0:01:42]} Ba6 {[%emt 0:01:16]} 9. Nf3 {[%emt 0:00:51]} d5 {[%emt 0:02:00]} 10. O-O-O {[%emt 0:07:21]} Nc6 {[%emt 0:07:33]} (10... Qd6 $5 {[%cal Rd6f4]} 11. Qh4 Qe7 $11) 11. h4 {[%emt 0:07:26]} Qd6 {[%emt 0:08:44]} 12. Qg4 {[%emt 0:13:55]} O-O {[%emt 0:03:07]} 13. g3 {[%emt 0:09:35]} Rae8 {[%emt 0:02:25]} 14. h5 {[%emt 0:06:19]} h6 {[%emt 0:02:35]} 15. e3 {[%emt 0:03:23]} Bxf1 {[%emt 0:01:10]} 16. Rhxf1 {[%emt 0:00:04]} e5 {[%emt 0:06:22]} 17. dxe5 {[%emt 0:03:42]} Nxe5 {[%emt 0:00:07]} 18. Qf4 {[%emt 0:00:28]} Nxf3 {[%emt 0:01:07]} 19. Qxf3 {[%emt 0:00:04]} Re5 {[%emt 0:00:19]} 20. Rd4 {[%emt 0:01:30]} Qe6 {[%emt 0:03:46]} 21. Rfd1 {[%emt 0:01:35][%cal Rd4d5]} c6 {[%emt 0:00:13]} 22. Rf4 {[%emt 0:04:50]} b5 {[%emt 0:03:15]} 23. g4 {[%emt 0:01:19]} Re8 {[%emt 0:01:44]} 24. Kb1 {[%emt 0:02:18]} Re7 {[%emt 0:08:10]} 25. Qh1 {[%emt 0:20:29]} Rg5 {[%emt 0:01:58]} 26. Rdd4 {[%emt 0:00:00]} Re5 {[%emt 0:00:43]} 27. Rd1 {[%emt 0:00:00]} Rg5 {[%emt 0:00:37]} 28. Rdd4 {[%emt 0:00:00]} Re5 {[%emt 0:00:15]} 29. Rd1 {[%emt 0:00:00] A rather calm draw.   Weighted Error Value: White=0.05 (flawless) /Black=0.07 (flawless)} 1/2-1/2